[Event "SVK ECo-C Extraliga 2021-22"]
[Site "Slovakia"]
[Date "2022.06.11"]
[Round "10"]
[White "Szucs, Vladimir"]
[Black "Bojtos, Patrik"]
[Result "1-0"]
[ECO "D26"]
[WhiteElo "2082"]
[BlackElo "1986"]
[Annotator "TA"]
[PlyCount "113"]
[EventDate "2021.10.21"]
[EventType "team-tourn"]
[EventCountry "SVK"]
[SourceTitle "playchess.com"]
[Source "ChessBase"]
[SourceQuality "1"]
[TimeControl "40/5400+30:1800+30"]

{[%evp 9,113,32,30,20,61,14,16,29,34,6,26,18,56,-2,45,44,42,6,75,95,80,0,111,34,50,36,37,39,73,77,71,64,75,62,74,72,238,236,241,239,237,243,224,223,335,324,441,428,414,412,411,383,377,375,374,390,389,359,377,373,368,334,330,227,258,293,292,263,267,264,293,293,268,278,220,142,118,93,419,320,730,735,886,921,804,766,2080,2027,2335,2335,2267,2169,1754,1631,1542,1164,29958,29955,6402,968,29976,29976,29986,29987,29985,29986]} 1. d4 {[%emt 0:00:25]} d5 {[%emt 0:00:14]} 2. c4 {[%emt 0:00:36]} dxc4 {[%emt 0:00:26]} 3. Nf3 {[%emt 0:00:45]} Nf6 {[%emt 0:01:14]} 4. e3 {[%emt 0:04:57]} e6 {[%emt 0:03:20]} 5. Bxc4 {[%emt 0:00:30]} Be7 {[%emt 0:00:30]} 6. O-O {[%emt 0:00:30] D26: Queen's Gambit Accepted: 4 e3 e6 5 Bxc5 c5 sidelines.} b6 {[%emt 0:00:30]} 7. Qa4+ {[%emt 0:00:30]} (7. Nc3 $14) 7... c6 {[%emt 0:08:06] [#] ...b5 is the strong threat.} 8. Be2 $146 {[%emt 0:02:35] The position is equal.} ({Predecessor:} 8. Qb3 Bb7 9. Nc3 Qc7 10. Bd2 Nbd7 11. Rac1 a6 12. e4 b5 13. Be2 b4 14. Na4 {1-0 (22) Potocki,K (1851)-Czuraj,G Warsaw 2009}) 8... O-O {[%emt 0:05:31]} 9. Rd1 {[%emt 0:09:26]} Qc7 {[%emt 0:08:48]} 10. Nc3 {[%emt 0:04:41]} Nbd7 {[%emt 0:08:44]} 11. Bd2 {[%emt 0:04:38]} (11. e4 $1 $14) 11... b5 {[%emt 0:26:53]} (11... c5 $11) 12. Qc2 $14 {[%emt 0:08:35][%cal Oc3b5]} a6 {[%emt 0:07:36]} 13. Rac1 {[%emt 0:00:30]} (13. b4 $5) 13... Qb6 {[%emt 0:00:30]} (13... c5 $11 {keeps the balance.}) 14. e4 $16 {[%emt 0:05:34] White is more active.} c5 {[%emt 0:08:52]} 15. d5 {[%emt 0:08:43]} ({White should play} 15. e5 $16 Ng4 16. Ne4 cxd4 17. Bg5 (17. Neg5 g6 $11) 17... Bxg5 18. Nexg5) 15... e5 {[%emt 0:01:31]} (15... Bb7 $11) 16. h3 {[%emt 0:02:41]} (16. b3 $1 $16) 16... c4 $14 {[%emt 0:07:46]} 17. Be3 $36 {[%emt 0:01:22][%mdl 2048] White is more active.} Bc5 {[%emt 0:00:17]} 18. Bxc5 {[%emt 0:00:09]} Qxc5 {[%emt 0:00:25]} 19. b3 {[%emt 0:01:34]} cxb3 {[%emt 0:00:45]} 20. Qxb3 {[%emt 0:00:14][%cal Rc3b5] Strongly threatening Nxb5!} Qd6 {[%emt 0:00:27]} 21. a3 $1 {[%emt 0:10:50]} Nc5 {[%emt 0:02:52]} 22. Qb4 {[%emt 0:00:30]} a5 $2 {[%emt 0:04:32]} (22... Nfd7 $16) 23. Nxb5 $18 {[%emt 0:08:03]} axb4 {[%emt 0:00:08]} 24. Nxd6 {[%emt 0:00:09]} Ncxe4 {[%emt 0:00:21]} 25. Nxe4 {[%emt 0:00:54]} ({Inferior is} 25. Nxc8 Rfxc8 26. Rxc8+ (26. axb4 Nc3 $11) 26... Rxc8 27. axb4 Nc3 $11) 25... Nxe4 {[%emt 0:00:01]} 26. axb4 {[%emt 0:01:10] Threatens to win with d6.} Rb8 {[%emt 0:00:21]} (26... g6 $142 27. Bd3 Nd6) 27. Nxe5 {[%emt 0:04:38]} Rxb4 {[%emt 0:02:18]} 28. Nc6 {[%emt 0:00:44]} Rb2 {[%emt 0:00:47]} 29. Ne7+ {[%emt 0:06:42]} Kh8 {[%emt 0:00:00]} 30. Rxc8 {[%emt 0:02:08]} Rxc8 {[%emt 0:00:02]} 31. Nxc8 {[%emt 0:00:09]} Nc3 {[%emt 0:01:34] [#]} 32. Re1 {[%emt 0:06:08]} Rxe2 {[%emt 0:00:33]} 33. Rxe2 {[%emt 0:00:06]} Nxe2+ {[%emt 0:00:03][%mdl 4096] Endgame KN-KN} 34. Kf1 {[%emt 0:00:08]} Nd4 {[%emt 0:00:51]} 35. Ne7 {[%emt 0:03:29]} g6 {[%emt 0:00:02]} 36. Nc6 {[%emt 0:00:43]} Nb5 {[%emt 0:00:27]} 37. Ke1 {[%emt 0:00:49]} Kg8 {[%emt 0:00:25]} 38. Kd2 {[%emt 0:00:32]} Kf8 {[%emt 0:00:14]} 39. Kd3 {[%emt 0:00:58]} Ke8 {[%emt 0:00:59]} 40. Kc4 {[%emt 0:00:28]} Nd6+ {[%emt 0:00:09]} 41. Kd4 {[%emt 0:30:50]} f6 {[%emt 0:30:41]} 42. g4 {[%emt 0:00:00]} Kd7 {[%emt 0:00:00]} 43. f3 {[%emt 0:00:00][%cal Bf2f3,Bf3f4][%mdl 32]} Kc7 $2 {[%emt 0:00:00][%mdl 8192]} (43... h5 $16 {is a better chance.} 44. Na5 Nf7) 44. Ne7 {[%emt 0:00:00]} Nf7 $2 {[%emt 0:00:00]} (44... Ne8 45. Ng8 g5) 45. f4 {[%emt 0:00:00]} g5 {[%emt 0:00:00]} 46. Ke4 {[%emt 0:00:00]} Nd6+ {[%emt 0:00:00]} 47. Kf3 {[%emt 0:00:00]} Kb6 {[%emt 0:00:00] [#]} 48. Ng8 $1 {[%emt 0:00:00]} Ne8 {[%emt 0:03:26]} 49. fxg5 {[%emt 0:00:00]} fxg5 {[%emt 0:00:53]} 50. Ke4 {[%emt 0:00:00]} Kc5 {[%emt 0:00:49]} 51. Ke5 {[%emt 0:00:00] Intending Nf6 and mate.} Nd6 {[%emt 0:00:22]} 52. Nf6 {[%emt 0:00:00] White threatens Nd7+ and mate.} Nc4+ {[%emt 0:00:41]} 53. Ke6 {[%emt 0:00:00]} h6 {[%emt 0:00:25]} 54. Ng8 {[%emt 0:00:00]} (54. Ne4+ $142 Kd4 {[#]} 55. d6 $1) 54... Ne3 {[%emt 0:00:23]} 55. d6 {[%emt 0:00:00][%cal Bd5d6,Bd6d7][%mdl 32] White mates.} Kc6 {[%emt 0:00:43]} 56. Ne7+ {[%emt 0:00:00]} Kb7 {[%emt 0:00:14]} 57. d7 {[%emt 0:00:00] Weighted Error Value: White=0.16 (very precise) /Black=0.72} 1-0

[Event "SVK ECo-C Extraliga 2021-22"]
[Site "Slovakia"]
[Date "2022.06.11"]
[Round "10"]
[White "Tauber, Marek"]
[Black "Gzib, David"]
[Result "1/2-1/2"]
[ECO "D97"]
[WhiteElo "2050"]
[BlackElo "2040"]
[Annotator "TA RC"]
[PlyCount "110"]
[EventDate "2021.10.21"]
[EventType "team-tourn"]
[EventCountry "SVK"]
[SourceTitle "playchess.com"]
[Source "ChessBase"]
[SourceQuality "1"]
[TimeControl "40/5400+30:1800+30"]

{[%evp 16,110,7,0,66,21,26,28,42,16,24,36,29,20,68,0,40,0,75,79,56,29,85,83,68,48,47,54,64,0,0,0,0,-93,-12,-89,-73,-302,-293,-219,-219,-306,-188,-242,-36,-45,-7,-14,0,-79,0,-155,-160,-155,-143,-212,-212,-212,-59,-59,168,150,143,27,132,0,141,39,473,459,393,-59,-59,-60,-59,-59,-59,-59,-59,-59,-59,-59,-59,-59,-59,-59,-59,-59,-59,-59,-59,-59,-59,-59,-59,-59,-59]} 1. d4 {[%emt 0:01:51]} Nf6 {[%emt 0:00:08]} 2. c4 {[%emt 0:00:42]} g6 {[%emt 0:00:39]} 3. Nf3 {[%emt 0:01:52]} Bg7 {[%emt 0:00:08]} 4. Nc3 {[%emt 0:01:48]} d5 {[%emt 0:00:12]} 5. Qb3 {[%emt 0:00:32]} dxc4 {[%emt 0:02:55]} 6. Qxc4 {[%emt 0:00:02]} O-O {[%emt 0:01:06]} 7. e4 {[%emt 0:00:24][%cal Be2e4,Be4e5][%mdl 32]} a6 {[%emt 0:08:49]} 8. e5 {[%emt 0:00:13]} b5 {[%emt 0:13:32]} 9. Qb3 {[%emt 0:00:10]} Be6 {[%emt 0:13:15] [#] D97: Grünfeld: Russian System: 7 e4, replies other than 7...Bg4.} (9... Nfd7 $11) 10. exf6 $1 {[%emt 0:22:54]} Bxb3 {[%emt 0:00:30]} 11. fxg7 {[%emt 0:00:30]} Kxg7 {[%emt 0:00:30] White has an edge.} 12. axb3 {[%emt 0:00:30] With the idea Bxb5.} Nc6 {[%emt 0:00:30] ...Nb4 is the strong threat.} 13. Be3 {[%emt 0:00:30][%mdl 1024] White has compensation.} Nb4 {[%emt 0:00:30]} 14. Rc1 {[%emt 0:00:30] Prevents Nc2+.} Nd5 {[%emt 0:00:30]} (14... e6 $11) 15. Be2 {[%emt 0:10:18]} ({White should play} 15. Nxd5 $14 Qxd5 16. Rc3) 15... c6 {[%emt 0:02:49] [#]} 16. O-O $146 {[%emt 0:01:10]} ({Predecessor:} 16. Bd2 Rc8 17. O-O e6 18. Ne4 Qb6 19. Nc5 Rfe8 20. Ra1 Ra8 21. Ba5 Qa7 22. Ne5 {1-0 (30) Reyes Zavaleta,D (1626)-Guaraca Pintado,J (1789) Guayaquil 2022}) 16... f6 {[%emt 0:02:18]} (16... Nxe3 $11 17. fxe3 Qd6) 17. Nxd5 $16 {[%emt 0:07:44]} cxd5 {[%emt 0:01:01]} 18. Rc5 {[%emt 0:00:10]} Qd7 {[%emt 0:01:54]} (18... Rc8 $1 $11) 19. b4 {[%emt 0:03:18]} Rfc8 {[%emt 0:00:52]} 20. Rfc1 {[%emt 0:04:58] White is more active.} Rxc5 {[%emt 0:00:30]} 21. bxc5 {[%emt 0:00:02]} Qc6 {[%emt 0:06:09]} 22. b4 {[%emt 0:01:56]} (22. Ne1 $14) 22... a5 $1 $11 {[%emt 0:00:52]} 23. bxa5 {[%emt 0:08:41]} Rxa5 {[%emt 0:00:30]} 24. Rb1 {[%emt 0:00:30]} (24. Bd2 $11 Ra4 25. h3 (25. Rb1 b4 $11)) 24... Qa6 {[%emt 0:06:30]} (24... Qa8 $1 $17 {Strongly threatening ...Ra1.} 25. Rf1 (25. Rxb5 $2 Ra1+ 26. Bf1 Qa6 $19) 25... b4) 25. Bf1 {[%emt 0:07:49]} (25. Ne1 $1 $11) 25... Ra1 $17 {[%emt 0:03:06]} 26. Rb3 {[%emt 0:07:30]} (26. Rxa1 $17 Qxa1 27. c6) 26... b4 $19 {[%emt 0:09:03][%csl Ga6][%cal Ra1f1]} 27. Nd2 {[%emt 0:01:36]} Qa4 {[%emt 0:00:30]} 28. g3 {[%emt 0:03:15]} Rd1 {[%emt 0:05:09]} 29. Rb2 {[%emt 0:05:50]} b3 $2 {[%emt 0:09:05]} (29... e5 $19 {And now ...exd4 would win.} 30. Kg2 Re1) 30. Kg2 $15 {[%emt 0:02:14]} Rxd2 {[%emt 0:05:40]} 31. Rxd2 {[%emt 0:01:38]} Qa1 {[%emt 0:00:39]} 32. Bd3 {[%emt 0:02:01]} (32. c6 $11 {keeps the balance.}) 32... b2 {[%emt 0:00:02]} (32... e5 $1 $17) 33. Bc2 $2 {[%emt 0:01:29]} (33. c6 $1 $11 b1=R 34. Bxb1 Qxb1 35. Re2) 33... b1=Q $17 {[%emt 0:01:28]} 34. Bxb1 {[%emt 0:00:02]} Qxb1 {[%emt 0:00:12][%mdl 4096] Endgame KQ-KRB} 35. h4 {[%emt 0:00:10]} (35. Re2 $17) 35... e5 $19 {[%emt 0:02:16]} 36. Kh2 {[%emt 0:00:59]} Qb7 $2 {[%emt 0:01:46]} (36... Qb3 $1 $19 {Hoping for ...Kf7.} 37. Kg1 Kf7) 37. Rc2 $1 $15 {[%emt 0:01:18] aiming for c6.} Kf7 $2 {[%emt 0:01:45]} (37... Qc6 $1 $15 {stays ahead.}) 38. c6 $18 {[%emt 0:01:12]} Qc7 {[%emt 0:00:03][%cal Oh7h6]} 39. Rc1 {[%emt 0:00:51]} ({Only move:} 39. dxe5 $1 $16 fxe5 40. Bb6) 39... Ke6 {[%emt 0:00:54]} (39... Ke7 $1 $11 {remains equal.}) 40. Rc5 {[%emt 0:00:42]} ({White must play} 40. dxe5 $1 $16 fxe5 41. Bb6) 40... h5 {[%emt 0:01:07] [#]} (40... Ke7 $11) 41. Kg1 {[%emt 0:07:32]} (41. Bd2 $1 $16 {[%cal Rd2a5]}) 41... Kf5 $2 {[%emt 0:07:40][%mdl 8192]} (41... exd4 $1 $14 42. Bf4 Qc8) 42. dxe5 {[%emt 0:11:35]} fxe5 {[%emt 0:01:09] [#]} 43. Rxd5 $2 {[%emt 0:00:31]} (43. Bd2 $1 $18 {[%cal Rd2a5]}) 43... Qxc6 $15 {[%emt 0:01:16] Black is slightly better.} 44. Rd8 {[%emt 0:04:59]} Kg4 {[%emt 0:06:05]} 45. Kh2 $1 {[%emt 0:01:23]} Kf3 {[%emt 0:03:35]} 46. Rf8+ {[%emt 0:02:18]} Ke2 {[%emt 0:00:39] ( -> ...Kf1)} 47. Kg1 {[%emt 0:00:57]} Qe6 {[%emt 0:01:44]} 48. Kg2 {[%emt 0:03:04]} Qd6 {[%emt 0:02:11]} 49. Rc8 {[%emt 0:01:26]} Qd5+ {[%emt 0:01:53]} 50. Kg1 {[%emt 0:00:02]} Qd7 {[%emt 0:03:08]} 51. Rf8 {[%emt 0:00:42]} Qd1+ {[%emt 0:02:38]} 52. Kg2 {[%emt 0:00:02]} Qb1 {[%emt 0:01:00]} 53. Rf6 {[%emt 0:00:58]} Qb7+ {[%emt 0:00:49]} 54. Kg1 {[%emt 0:00:06]} Qb4 {[%emt 0:00:59]} 55. Rb6 {[%emt 0:00:49]} Qe4 {[%emt 0:01:24] Weighted Error Value: White=0.51/Black=0.68} 1/2-1/2

[Event "SVK ECo-C Extraliga 2021-22"]
[Site "Slovakia"]
[Date "2022.06.11"]
[Round "10"]
[White "Gajdosik, Andrej"]
[Black "Kovacik Emil"]
[Result "1/2-1/2"]
[ECO "E05"]
[WhiteElo "2023"]
[BlackElo "2041"]
[Annotator "TA"]
[PlyCount "118"]
[EventDate "2021.10.21"]
[EventType "team-tourn"]
[EventCountry "SVK"]
[SourceTitle "playchess.com"]
[Source "ChessBase"]
[SourceQuality "1"]
[TimeControl "40/5400+30:1800+30"]

{[%evp 15,118,-43,-28,-61,10,-106,-108,-115,-60,-45,-46,-46,-36,-70,-73,-76,-81,-82,-82,-135,-134,-130,-125,-118,-121,-121,-120,-120,-118,-106,-83,-85,-85,-165,-134,-146,-141,-162,-95,-90,-81,-81,-10,-43,-38,-81,-81,-140,-95,-95,-95,-109,-75,-81,-40,-81,-81,-81,0,-8,0,-81,-81,-81,-13,-25,-14,-52,-8,-16,0,-16,-16,-19,-8,-8,0,0,0,0,0,0,0,0,0,0,0,0,0,0,0,0,0,0,0,-8,0,0,0,-8,-8,-8,0,0,0]} 1. d4 {[%emt 0:00:09]} d5 {[%emt 0:00:14]} 2. Nf3 {[%emt 0:00:35]} Nf6 {[%emt 0:00:12]} 3. c4 {[%emt 0:00:17]} e6 {[%emt 0:00:27]} 4. Nc3 {[%emt 0:00:35]} Be7 {[%emt 0:02:05]} 5. g3 {[%emt 0:04:01]} O-O {[%emt 0:05:23]} 6. Bg2 {[%emt 0:00:14]} dxc4 {[%emt 0:00:20]} 7. O-O {[%emt 0:01:26]} Nc6 {[%emt 0:03:00]} 8. e4 {[%emt 0:07:08]} Rb8 $1 {[%emt 0:07:14] 8...Rb8 scores better than 8...a6.} 9. Qa4 {[%emt 0:29:12] E05: Open Catalan: 5 Nf3 Be7.} Nb4 {[%emt 0:20:56] [#]} (9... Nxd4 $15 10. Nxd4 Qxd4) 10. Qxa7 $146 {[%emt 0:22:57] [#]} (10. a3 $1 $11 Bd7 11. Qd1) ({Predecessor:} 10. Be3 b5 11. Qd1 Nd3 12. Ne1 b4 13. Na4 Bd7 14. Nxd3 cxd3 15. Re1 Bb5 16. Nc5 Bxc5 17. dxc5 {1-0 (43) Santl,A (2206)-Rolle,E (2113) Bad Woerishofen 2001}) 10... Bd7 $1 $17 {[%emt 0:00:42]} (10... Nc6 11. Qa4 $11) 11. Ne5 {[%emt 0:03:14] Black is better.} Nc6 {[%emt 0:18:09]} (11... Qc8 $17 {Threatens to win with ...Ra8.} 12. Nxd7 (12. Nxc4 $2 Ra8 $19) 12... Qxd7) 12. Nxc6 $15 {[%emt 0:01:14]} Bxc6 {[%emt 0:00:45]} 13. d5 {[%emt 0:01:14]} exd5 {[%emt 0:05:02] Strongly threatening ...b6.} 14. exd5 {[%emt 0:00:34]} Nxd5 {[%emt 0:06:03]} 15. Nxd5 {[%emt 0:03:39]} Bxd5 {[%emt 0:00:44]} 16. Rd1 {[%emt 0:00:26]} Ra8 {[%emt 0:01:09]} 17. Qd4 {[%emt 0:02:17]} (17. Qe3 $142 c6 18. Bxd5 cxd5 19. Qe5) 17... Bxg2 $17 {[%emt 0:00:27]} 18. Kxg2 {[%emt 0:01:05]} Qxd4 {[%emt 0:05:39]} 19. Rxd4 {[%emt 0:00:06]} b5 {[%emt 0:00:45]} 20. Rd7 {[%emt 0:11:14][%csl LRc7,LRe7]} Bd6 {[%emt 0:04:55]} 21. Bf4 {[%emt 0:02:22]} Bxf4 {[%emt 0:08:08]} 22. gxf4 {[%emt 0:00:04][%mdl 4096] Endgame KRR-KRR} c5 {[%emt 0:04:01]} 23. Rd5 {[%emt 0:01:58]} Rfc8 {[%emt 0:00:14]} 24. Re1 {[%emt 0:00:40]} (24. a3 $17) 24... Kf8 {[%emt 0:01:06]} (24... Rxa2 25. Rxc5 Raa8 26. Rxb5 $11) 25. Rd7 {[%emt 0:00:26]} Re8 {[%emt 0:01:14] Prevents Ree7.} ({And not} 25... Rxa2 26. Ree7 Kg8 27. Rxf7 $11) 26. Red1 {[%emt 0:03:10]} Re4 {[%emt 0:02:20]} (26... Re7 $19 {And now ...Rxd7 would win.} 27. Rd8+ Rxd8 28. Rxd8+ Re8 29. Rxe8+ Kxe8) 27. Rc7 {[%emt 0:02:36]} Rxf4 {[%emt 0:01:03]} ({Don't play} 27... Rxa2 28. Rdd7 $16) 28. Rxc5 {[%emt 0:00:31]} Rb8 {[%emt 0:00:17]} ({Black should try} 28... Rxa2 $17 29. Rxb5 g6) 29. Kg3 {[%emt 0:00:34]} Rf6 {[%emt 0:00:13]} 30. Rd7 {[%emt 0:00:30]} g6 {[%emt 0:00:25]} 31. Rcc7 {[%emt 0:00:16]} (31. h4 $142) 31... h5 {[%emt 0:00:45]} 32. Rc5 {[%emt 0:00:59]} Kg7 {[%emt 0:00:14]} 33. Rdd5 {[%emt 0:00:31]} Rfb6 {[%emt 0:00:40]} 34. h4 {[%emt 0:00:35]} Kf6 {[%emt 0:00:17]} 35. Kf4 {[%emt 0:00:14]} R8b7 {[%emt 0:00:31]} 36. f3 {[%emt 0:00:12]} Ke6 {[%emt 0:00:18]} (36... Kg7 $17) 37. Re5+ $11 {[%emt 0:00:10]} Kf6 {[%emt 0:00:03]} ({Better is} 37... Kd6 $11) 38. Red5 $17 {[%emt 0:00:03]} Kg7 {[%emt 0:00:22]} 39. Kg3 {[%emt 0:00:25]} f6 {[%emt 0:00:14]} ({Black should play} 39... Ra6 $17 40. Rxb5 Rc7) 40. Kf4 {[%emt 0:00:17]} Kf7 {[%emt 0:00:05]} 41. Ke4 {[%emt 0:30:52]} Ke6 {[%emt 0:30:06]} 42. f4 {[%emt 0:00:00] The position is equal.} Rd7 {[%emt 0:00:00]} 43. f5+ {[%emt 0:00:00]} gxf5+ {[%emt 0:00:00]} 44. Rxf5 {[%emt 0:00:00]} Rd2 {[%emt 0:00:00] [#] aiming for ...Rbd6.} 45. Rxb5 {[%emt 0:00:00]} Rxb2 {[%emt 0:00:00]} 46. Rxb6+ {[%emt 0:00:00]} Rxb6 {[%emt 0:00:00]} 47. Rxh5 $11 {[%emt 0:00:00] KR-KR} Rc6 {[%emt 0:00:00]} 48. Rf5 {[%emt 0:00:00]} c3 {[%emt 0:00:00] ( -> ...Rc4+)} 49. Rf1 {[%emt 0:00:00]} c2 {[%emt 0:00:00]} 50. Rc1 {[%emt 0:00:00]} Rc4+ {[%emt 0:00:00]} 51. Kd3 {[%emt 0:00:00]} Rxh4 {[%emt 0:00:00]} 52. Rxc2 {[%emt 0:00:00]} f5 {[%emt 0:00:00]} 53. Rc6+ {[%emt 0:00:00]} Kd5 {[%emt 0:00:00]} 54. Rc8 {[%emt 0:00:00]} Rh3+ {[%emt 0:00:00]} 55. Ke2 {[%emt 0:00:00]} Rh2+ {[%emt 0:11:13]} 56. Kf3 {[%emt 0:09:28]} Rxa2 {[%emt 0:00:30]} 57. Re8 {[%emt 0:00:30]} Ra4 {[%emt 0:00:30]} 58. Re7 {[%emt 0:00:30]} Re4 {[%emt 0:00:30]} 59. Rxe4 {[%emt 0:00:30]} fxe4+ {[%emt 0:00:30] Weighted Error Value: White=0.15 (very precise) /Black=0.19 (very precise)} 1/2-1/2

[Event "SVK ECo-C Extraliga 2021-22"]
[Site "Slovakia"]
[Date "2022.06.11"]
[Round "10"]
[White "Kardis, Benjamin"]
[Black "Banas, Kamil"]
[Result "0-1"]
[WhiteElo "2005"]
[BlackElo "2262"]
[Annotator "TA"]
[PlyCount "14"]
[EventDate "2021.10.21"]
[EventType "team-tourn"]
[EventCountry "SVK"]
[SourceTitle "playchess.com"]
[Source "ChessBase"]
[SourceQuality "1"]
[TimeControl "40/5400+30:1800+30"]

{[%evp 9,14,26,26,25,33,31,54]} 1. d4 {[%emt 0:00:18]} d5 {[%emt 0:00:05]} 2. Nc3 {[%emt 0:00:05]} Nf6 {[%emt 0:00:07]} 3. Bg5 {[%emt 0:00:30]} Ne4 {[%emt 0:01:15]} 4. Nxe4 {[%emt 0:03:09]} dxe4 {[%emt 0:01:08]} 5. Qd2 {[%emt 0:02:29]} h6 {[%emt 0:00:23]} 6. Bf4 {[%emt 0:02:15] D01: Veresov Opening.} e6 {[%emt 0:03:08] [#]} 7. O-O-O $146 {[%emt 0:03:18]} ({Predecessor:} 7. e3 Bd6 8. Ne2 Nd7 9. O-O-O O-O 10. h4 a5 11. g4 b5 12. g5 h5 13. Bxd6 cxd6 {1-0 (46) Aabling Thomsen,J (2320)-Frank Nielsen,M (1984) Copenhagen 2013}) 7... Bd6 {[%emt 0:01:20][%mdl 32768] Loss on time!?} 0-1

[Event "SVK ECo-C Extraliga 2021-22"]
[Site "Slovakia"]
[Date "2022.06.11"]
[Round "10.1"]
[White "Plat, Vojtech"]
[Black "Mihok, Oliver"]
[Result "1/2-1/2"]
[ECO "E62"]
[WhiteElo "2554"]
[BlackElo "2544"]
[Annotator "TA"]
[PlyCount "38"]
[EventDate "2021.10.21"]
[EventType "team-tourn"]
[EventCountry "SVK"]
[SourceTitle "playchess.com"]
[Source "ChessBase"]
[SourceQuality "1"]
[TimeControl "40/5400+30:1800+30"]

{[%evp 19,25,25,58,38,51,53,56,11]} 1. d4 {[%emt 0:00:03]} Nf6 {[%emt 0:00:10]} 2. c4 {[%emt 0:00:12]} g6 {[%emt 0:00:06]} 3. g3 {[%emt 0:00:04]} Bg7 {[%emt 0:00:03]} 4. Bg2 {[%emt 0:00:05]} O-O {[%emt 0:00:10]} 5. Nc3 {[%emt 0:00:03]} d6 {[%emt 0:00:06]} 6. Nf3 {[%emt 0:00:04]} Nc6 {[%emt 0:00:04]} 7. O-O {[%emt 0:00:10]} e5 {[%emt 0:00:03]} 8. dxe5 {[%emt 0:02:40]} dxe5 {[%emt 0:00:32]} 9. Bg5 {[%emt 0:01:29]} h6 {[%emt 0:00:07]} 10. Qxd8 {[%emt 0:00:21]} Rxd8 {[%emt 0:00:06]} 11. Bxf6 {[%emt 0:00:06] White is slightly better. E62: King's Indian: Fianchetto: 6...c6 and Panno Variation (6...Nc6) without ...a6.} Bxf6 {[%emt 0:00:06]} 12. Nd5 {[%emt 0:00:02]} Kg7 {[%emt 0:00:07]} 13. Nd2 {[%emt 0:07:56] [#]} {Predecessor:} Rd7 $146 14. Ne4 Be7 15. Nxe7 Rxe7 16. Nc5 Nd4 17. e3 Ne6 18. Nxb7 Bxb7 19. Bxb7 Rb8 {½-½ (38) Maze,S (2539)-Theodorou,N (2584) Paleochora 2021} 1/2-1/2

[Event "SVK ECo-C Extraliga 2021-22"]
[Site "Slovakia"]
[Date "2022.06.11"]
[Round "10.1"]
[White "Druska, Juraj"]
[Black "Gazik, Viktor"]
[Result "1/2-1/2"]
[ECO "A01"]
[WhiteElo "2523"]
[BlackElo "2549"]
[Annotator "TA"]
[PlyCount "39"]
[EventDate "2021.10.21"]
[EventType "team-tourn"]
[EventCountry "SVK"]
[SourceTitle "playchess.com"]
[Source "ChessBase"]
[SourceQuality "1"]
[TimeControl "40/5400+30:1800+30"]

{[%evp 10,39,7,0,7,2,0,0,2,0,13,15,16,7,39,1,37,28,43,36,47,43,41,40,49,42,58,39,53,55,69,20]} 1. b3 {[%emt 0:00:07]} c5 {[%emt 0:03:21]} 2. Bb2 {[%emt 0:00:23]} Nc6 {[%emt 0:00:06]} 3. e3 {[%emt 0:02:07]} Nf6 {[%emt 0:06:01]} 4. Nf3 {[%emt 0:02:56]} e6 {[%emt 0:01:40]} 5. d4 {[%emt 0:12:49]} d5 {[%emt 0:00:44]} 6. Be2 {[%emt 0:01:23]} cxd4 {[%emt 0:04:41] D05: Colle System with ...e6.} 7. Nxd4 {[%emt 0:07:36]} Bb4+ {[%emt 0:19:31]} 8. c3 {[%emt 0:02:31] [#] Hoping for Nxc6.} Bd6 {[%emt 0:02:07] The position is equal.} 9. O-O {[%emt 0:01:16]} Nxd4 {[%emt 0:12:26]} 10. Qxd4 {[%emt 0:01:53]} Qc7 {[%emt 0:09:02]} 11. c4 {[%emt 0:11:32] [#]} O-O $146 {[%emt 0:12:08]} ({Predecessor:} 11... dxc4 12. Bxc4 Bxh2+ 13. Kh1 Bd6 14. Bb5+ Ke7 15. Rc1 Qa5 16. Nc3 a6 17. Rd1 Rd8 18. a4 Bb4 19. Qxd8+ Qxd8 20. Rxd8 Kxd8 {0-1 (37) Galoic,B (2031)-Postny,E (2575) Zagreb 2017}) 12. cxd5 {[%emt 0:38:45]} (12. Na3 $5 {[%cal Ra3b5]}) 12... exd5 {[%emt 0:00:05]} 13. Na3 {[%emt 0:00:03][%cal Bb1a3,Ba3c2,Bc2e1,Be1d3,Bd3c5][%mdl 32]} a6 {[%emt 0:04:16] Prevents Nb5.} 14. Rac1 {[%emt 0:00:20] White is slightly better.} Qe7 {[%emt 0:04:23]} ({Less strong is} 14... Bxh2+ 15. Kh1 Qd6 16. g3 Bxg3 17. fxg3 $18) 15. Nc2 {[%emt 0:04:11]} Be6 {[%emt 0:00:01]} 16. Ne1 {[%emt 0:02:20]} Rfe8 {[%emt 0:06:33]} 17. Nd3 {[%emt 0:00:31]} Qf8 {[%emt 0:00:02]} 18. Nc5 {[%emt 0:03:34]} Re7 {[%emt 0:03:50]} 19. Bf3 {[%emt 0:02:44]} Bf5 {[%emt 0:01:08]} 20. Qh4 {[%emt 0:01:22] Weighted Error Value: White=0.07 (flawless) /Black=0.12 (very precise)} ({Not} 20. Bxd5 $2 Be5 21. Qd2 Bxb2 22. Bxf7+ Qxf7 $19) (20. Qd2 $14 {is superior.}) 1/2-1/2